Cogmind - Beta 9.2 @@@ ROGUE MODE // 2019.11.23 @ 15:59:12 Player: MorbOx Result: Destroyed by G-34 Mercenary with Small Laser Performance ------------- Evolutions (0) 0 Regions Visited (2) 400 Robots Destroyed (19) 95 Value Destroyed (188) 188 Prototype IDs (0) 0 Alien Tech Used (0) 0 Bonus (7) 7 TOTAL SCORE: 690 Bonus ------- Follower Combat Kills 7 Cogmind --------- Core Integrity 0/250 Matter 300/300 Energy 100/100 System Corruption 0% Temperature Cool (6) Movement Core (100) Ox1 Location -10/Mines Parts ------- > --- POWER (1) -------- (None) > --- PROPULSION (2) --- (None) > --- UTILITY (2) ------ Small Storage Unit Terrain Scan Processor > --- WEAPON (2) ------- (None) > --- INVENTORY (6) ---- Visual Processing Unit Sensor Array Signal Interpreter Seismic Analyzer Recalibrator Beam Cannon Peak State ------------ > --- POWER ------------ Ion Engine > --- PROPULSION ------- Wheel Wheel > --- UTILITY ---------- Small Storage Unit Terrain Scan Processor > --- WEAPON ----------- Beam Rifle Beam Rifle > --- INVENTORY -------- Light Treads Visual Processing Unit Seismic Analyzer Tractor Beam Recalibrator Beam Cannon [Rating: 11] Favorites ----------- Power Ion Engine Engine Ion Engine Propulsion Light Treads Treads Light Treads Wheel Wheel Utility Small Storage Unit Storage Small Storage Unit Processor Terrain Scan Processor Weapon Beam Rifle Energy Gun Beam Rifle Energy Cannon Beam Cannon Build | -11 -10 -10 ------- Run | Scr Mat Min Slots Evolved . | . . . Power . | . . . Propulsion . | . . . Utility . | . . . Weapon . | . . . Parts Attached 13 | 6 7 . Power 2 | 1 1 . Engine 2 | 1 1 . Core . | . . . Reactor . | . . . Propulsion 4 | 2 2 . Treads 2 | 2 . . Leg . | . . . Wheel 2 | . 2 . Hover . | . . . Flight . | . . . Utility 2 | 1 1 . Device . | . . . Storage 1 | 1 . . Processor 1 | . 1 . Hackware . | . . . Protection . | . . . Artifact . | . . . Weapon 5 | 2 3 . Energy Gun 4 | 2 2 . Energy Cannon 1 | . 1 . Ballistic Gun . | . . . Ballistic Cannon . | . . . Launcher . | . . . Special Weapon . | . . . Impact Weapon . | . . . Slashing Weapon . | . . . Piercing Weapon . | . . . Special Melee Weapon . | . . . Unidentified Prototypes . | . . . Parts Lost 6 | . 1 5 Power 1 | . . 1 Propulsion 2 | . . 2 Utility . | . . . Weapon 3 | . 1 2 Highest Loss Streak 5 | . 1 5 Average Slot Usage (%) 88 | . 85 92 Engine 13 | . 14 12 Treads 14 | . 25 . Wheel 12 | . 2 25 Storage 14 | . 14 14 Processor 6 | . 1 14 Energy Gun 24 | . 24 25 Energy Cannon 1 | . 2 . Naked Turns . | . . . Heaviest Build 15 | 12 15 15 Greatest Support 40 | 40 40 20 Greatest Overweight (x) 1 | 1 . 1 Average Overweight (x) . | . . . Largest Inventory Capacity 6 | 6 6 6 Average Capacity 5 | 5 6 6 Most Carried 6 | 5 6 6 Average Carried 4 | 1 4 6 Final Capacity 6 | 6 6 6 Final Carried 6 | 3 6 6 Class Distribution -------------------- 65% | Mutant 34% | Scavenger-Mutant Dominant Class ---------------- Mutant | -10/Materials Scavenger-Mutant | -10/Mines Resources | -11 -10 -10 ----------- Run | Scr Mat Min Matter Collected 325 | 260 65 . Remotely . | . . . Salvage Created 502 | 157 298 47 Parts 53 | 15 32 6 Haulers Intercepted . | . . . Recyclers Shooed 2 | . 2 . Parts Field Recycled . | . . . Retrieved Matter . | . . . Parts Self-Destructed . | . . . Prevented . | . . . Kills | -11 -10 -10 ------- Run | Scr Mat Min Combat Hostiles Destroyed 4 | . 2 2 Guns 4 | . 2 2 Classes Destroyed 8 | 3 4 1 Worker 6 | 2 3 1 Builder 2 | . 2 . Tunneler 2 | 2 . . Recycler 2 | 1 1 . Mechanic 1 | . 1 . Watcher 2 | . 2 . Swarmer 2 | . . 2 Grunt 2 | . 2 . Best Kill Streak 3 | 3 3 2 Combat Bots Only 2 | . 1 2 Max Kills in Single Turn 1 | 1 1 1 Gunslinging . | . . . Exploded . | . . . Melee . | . . . Uniques/NPCs Destroyed . | . . . Combat | -11 -10 -10 -------- Run | Scr Mat Min Damage Taken 737 | . 263 474 Core 253 | . 66 187 Absorbed by Shields . | . . . Core Remaining (%) 100 | 100 . . Volleys Fired 54 | 11 33 10 Largest 2 | 2 2 2 Hottest 112 | 90 112 112 Shots Fired 89 | 22 47 20 Gun 89 | 22 47 20 Cannon . | . . . Launcher . | . . . Special . | . . . Kinetic . | . . . Thermal 89 | 22 47 20 Explosive . | . . . Electromagnetic . | . . . Robot Hit Streak 4 | 4 4 4 Robot Miss Streak 4 | 2 4 2 Penetration Max . | . . . Secondary Targets . | . . . Shots Hit Robots 47 | 12 24 11 Core Hits 25 | 6 15 4 Critical Hits . | . . . Critical Kills . | . . . Critical Parts Destroyed . | . . . Melee Attacks . | . . . Impact . | . . . Slashing . | . . . Piercing . | . . . Sneak Attacks . | . . . Combat Hostiles . | . . . Follow-up Attacks . | . . . Damage Inflicted 680 | 158 389 133 Guns 680 | 158 389 133 Cannons . | . . . Explosions . | . . . Melee . | . . . Ramming . | . . . Kinetic . | . . . Thermal 680 | 158 389 133 Explosive . | . . . Electromagnetic . | . . . Impact . | . . . Slashing . | . . . Piercing . | . . . Highest Corruption . | . . . Average Corruption . | . . . Corruption Purged . | . . . Overload Shots . | . . . Overflow Damage . | . . . Projectiles . | . . . Explosions . | . . . Melee . | . . . Knockbacks . | . . . Impact . | . . . Kinetic . | . . . Secondary . | . . . Self-Inflicted Damage . | . . . Shots . | . . . Rammed . | . . . Targets Rammed . | . . . Kicked . | . . . Crushed . | . . . Highest Temperature 409 | 270 305 409 Average Temperature 119 | 117 105 153 Received Heat Transfer 390 | . 126 264 Effects 3 | 2 1 . Energy Bleed 1 | . 1 . Interference 2 | 2 . . Siege Activations . | . . . Robots Corrupted . | . . . Combat Hostiles . | . . . Parts Fried . | . . . Impact Corruptions . | . . . Robots Melted . | . . . Combat Hostiles . | . . . Parts Melted 1 | . 1 . Heat Transferred 1765 | 433 999 333 Parts Sabotaged . | . . . Parts Stolen . | . . . Parts Stripped . | . . . Power Chain Reactions . | . . . Missiles Intercepted . | . . . Alert | -11 -10 -10 ------- Run | Scr Mat Min Peak Influence 121 | 25 99 121 Average Influence 37 | 13 31 55 Maximum Alert Level . | . . . Low Security (%) 100 | 100 100 100 Level 1 . | . . . Level 2 . | . . . Level 3 . | . . . Level 4 . | . . . Level 5 . | . . . High Security . | . . . Max Security . | . . . Squads Dispatched 1 | . . 1 Investigation 1 | . . 1 Extermination . | . . . Reinforcement . | . . . Assault . | . . . Garrison . | . . . Intercept . | . . . Construction Impeded . | . . . Haulers Reinforced . | . . . Stealth | -11 -10 -10 --------- Run | Scr Mat Min Distress Signals 2 | . 2 . Communications Jammed . | . . . Distress Signals . | . . . Times Spotted 16 | . 8 8 Peak Tracking Total 5 | . 3 5 Tactical Retreats . | . . . Traps | -11 -10 -10 ------- Run | Scr Mat Min Traps Triggered 1 | . 1 . Indirectly . | . . . Trap Hack Attempts . | . . . Triggered . | . . . Disarmed . | . . . Reprogrammed . | . . . Reused . | . . . Traps Extracted . | . . . Installed . | . . . Triggered . | . . . Machines | -11 -10 -10 ---------- Run | Scr Mat Min Machines Disabled . | . . . Max in Single Turn . | . . . Machines Sabotaged . | . . . Garrisons Compromised . | . . . Overloaded Fab Kills . | . . . Fab Network Shutdowns . | . . . Hacking | -11 -10 -10 --------- Run | Scr Mat Min Machines Accessed 3 | . 2 1 Terminals 1 | . 1 . Fabricators . | . . . Repair Stations 1 | . 1 . Recycling Units . | . . . Scanalyzers . | . . . Garrison Access . | . . . Total Hacks 3 | . 2 1 Successful 1 | . . 1 Failed 2 | . 2 . Catastrophic . | . . . Database Lockouts . | . . . Manual . | . . . Terminals 1 | . 1 . Fabricators . | . . . Repair Stations 1 | . 1 . Recycling Units . | . . . Scanalyzers . | . . . Garrison Access . | . . . Terminal Hacks 1 | . . 1 Open Door 1 | . . 1 Fabricator Hacks . | . . . Repair Station Hacks . | . . . Recycling Unit Hacks . | . . . Scanalyzer . | . . . Garrison Access Hacks . | . . . Unauthorized Hacks . | . . . Terminals . | . . . Fabricators . | . . . Repair Stations . | . . . Recycling Units . | . . . Scanalyzers . | . . . Garrison Access . | . . . Data Cores Recovered . | . . . Used . | . . . Hacking Detections . | . . . Full Trace Events . | . . . Feedback Events . | . . . Feedback Blocked . | . . . Robot Schematics Acquired . | . . . Robots Built . | . . . Matter . | . . . Time . | . . . Total Robot Build Rating . | . . . Part Schematics Acquired . | . . . Parts Built . | . . . Matter . | . . . Time . | . . . Total Part Build Rating . | . . . Parts Repaired . | . . . Time . | . . . Parts Recycled . | . . . Recycled Matter . | . . . Retrieved Matter . | . . . Retrieved Components . | . . . Parts Scanalyzed . | . . . Part Schematics Acquired . | . . . Parts Damaged . | . . . Bothacking | -11 -10 -10 ------------ Run | Scr Mat Min Used RIF Installer . | . . . Robots Hacked . | . . . Non-combat . | . . . Combat . | . . . Robot Hacks Applied . | . . . Relay Couplers Released . | . . . Robots Rewired . | . . . Allies Hacked . | . . . Hacks Repelled . | . . . Allies | -11 -10 -10 -------- Run | Scr Mat Min Total Allies 2 | . . 2 Largest Group 2 | . . 2 Highest-Rated Group 47 | . . 47 Highest-Rated Ally 31 | . . 31 Total Orders . | . . . Ally Attacks 5 | . . 5 Total Damage 40 | . . 40 Kills 1 | . . 1 Allies Corrupted . | . . . Allies Melted . | . . . Intel | -11 -10 -10 ------- Run | Scr Mat Min Robot Analysis Total . | . . . Derelict Logs Recovered 2 | . . 2 Drone Launches . | . . . Drone Recoveries . | . . . Exploration | -11 -10 -10 ------------- Run | Scr Mat Min Turns Passed 1207 | 183 579 445 Spaces Moved 912 | 97 305 510 Core 63 | 29 . 34 Treads 351 | 68 283 . Legs . | . . . Wheels 498 | . 22 476 Hover . | . . . Flight . | . . . Fastest Speed 50 | 50 80 80 Average Speed 111 | 134 154 81 Slowest Speed 160 | 160 160 100 Overloaded Moves . | . . . Propulsion Burnouts . | . . . Robots Hopped . | . . . Cave-ins Triggered . | . . . Exploration Rate (%) 44 | 6 42 86 Regions Visited 2 Branch Regions 1 Pre-discovered Areas 1 | . . 1 Known Exits Taken . | . . . Unknown Exits Taken 2 | 1 1 . Scrap Searched . | . . . Spaces Dug . | . . . Terrain Destroyed . | . . . Melee . | . . . Projectile . | . . . AOE . | . . . Actions | -11 -10 -10 --------- Run | Scr Mat Min Total 1013 | 127 366 520 Wait 12 | 6 6 . Move 910 | 96 304 510 Hop . | . . . Pick Up 18 | 8 10 . Fast Attach 2 | 1 1 . Attach 7 | 5 2 . Detach . | . . . Swap 4 | . 4 . Drop 6 | . 6 . Fire 54 | 11 33 10 Melee . | . . . Ram . | . . . Kick . | . . . Crush . | . . . Escape Stasis . | . . . Rewire . | . . . Trap . | . . . Miscellaneous . | . . . Route ------- -11/Scrapyard -10/Materials (discovered 2 exits: [*Mat] / *Min) -10/Mines History --------- Turn | Location | Event 7 | -11/Scrapyard | Discovered new exit (range 13) 184 | -11/Scrapyard | Entered Materials 318 | -10/Materials | Build established: Mutant 431 | -10/Materials | Discovered new exit (range 11) 700 | -10/Materials | Discovered new exit (range 8) 763 | -10/Materials | Entered Mines 929 | -10/Mines | Learned location of Zion (-7) 970 | -10/Mines | Learned Materials emergency access door positions 1028 | -10/Mines | Build established: Scavenger-Mutant 1118 | -10/Mines | Excavation squad dispatched 1118 | -10/Mines | A large section of the Mines collapsed 1167 | -10/Mines | Core integrity fell below 50% 1182 | -10/Mines | Core integrity fell below 20% 1204 | -10/Mines | Met a Derelict shopkeep closing up shop 1205 | -10/Mines | Lost 5 parts (1p2n2w) 1208 | -10/Mines | Destroyed by G-34 Mercenary with Small Laser Last Messages --------------- 01080_ K-01 Serf collects debris. 01118_ SU-47Y(g) crushed by falling debris. 01118_ ALERT: Suspicious cave-in, suspected derelict activity in mines. Dispatching escorted excavation squad. 01138_ Destroyed Heat Sink. 01140_ Ion Engine destroyed. 01143_ Beam Rifle destroyed. 01161_ Wheel destroyed. 01168_ G-34 Mercenary heat damages Aluminum Leg. 01170_ Beam Rifle destroyed. 01174_ Wheel destroyed. 01203_ Connecting with SHOP.Sys... 01203_ Current location identified: Mines >>Open Door Sealed Doors opened. 01204_ KQ-3AJ(g): "Sorry, the Unaware have moved into these parts and I'm closing up shop. No more sales from me!" 01206_ ALERT: Derelict activity detected in mines. Dispatching investigation squad. 01208_ KQ-3AJ(g): "Take whatever you can and run for it!" Map ----- +----------------------------------------------------+ | #??????????####????????# #### #??### #?# | | ##?????????## ##??????# ##??# #????# #?? | | ##?????????# #?????# #???# ##????# #?? | | ######????# #????## #??? ####?????# #?? | | ##????# #??### #?? ##???????## #?? | | #?????# #### #??# #???????## ##? | | # ##????# ## #???# ##???????# #? | | ### #####??# #???###????????## #? | | ??## #" #### #?????????????## ##? | | ???# # ## ##???????####### ##?? | | ??## ## ###????????# ##??? | | ??# #### #####??????????# ##???? | | ??#####??# ##??????????????# #????? | | ?????????# ###????????????###### ##???? | | ?????????# ################ ##?## ##??? | | ?????????## #??## ##?? | | ??????????# ##### #?? | | ??????????# ######### ## #?? | | ?????????# #???????## #### #### #####?? | | ?????????# #??###??###g ##????? ## ######## | | ????????# #??#"!### ##?????# ?# ## | | ???????# ##??#"! !# g ####??# ?# ## """ | | ??????# ###???#"]g ##?# ?# ## """ | | ??????# #??????#"! ### ## """ | | ??????# ???????#"! *#X ## ##### | | ??????## ???????#????# @ #??#### ## | | ???????## ???????????## ### #?????# #? | | ????????# ????????????# #?# #?????# #? | | ????????##????????????# ## #?# ###???# #? | | ??????????????????????# #?# ##?# ##??# #? | | ??????????????????????### #??###?## #### #? | | ????????????????????????## ##?????## #? | | ???????????????????????######??????# ### #? | | ??????????????????????## ###??????# #?# #? | | ?????????????????????## ##?????# ##?# #? | | ?????????????????????# ##????# #??# ## | | ?????????????????????# ###### #??# | | ?????????????????????## ## ## ##??#### | | ??????????????????????# #### !% ##??????? | | ??????????????????##### #??#### # #???????# | | ??????????????????# #?????## # ??????# | | ??????????????????# #####??????## #### ?????# | | ??????????????????# #???????????## #??? ##????# | | ??????????????????# #????????????## ##????#?????# | | ?????#####????????# #?????????????####???????????# | | ?????# """ ####### #????????????????????????????? | | ?????# """ #????????????????????????????? | | ?????# """ #########????????????????????????????? | | ?????# ???????????????????????????????????????? | | ?????# ?????????????????????????????????????????? | +----------------------------------------------------+ Best States ------------- Heat Dissipation 25 Energy Generation 10 Energy Capacity 250 Matter Stores 300 Matter Capacity 300 Sight Range 16 Terrain Scan Density 85 Evasion (%) 50 Recoil Reduction 2 Item Schematics ----------------- None Robot Schematics ------------------ None Fabricated ------------ Nothing Alien Tech Used ----------------- None Achievements -------------- None Challenges ------------ None Game ------ Seed ImprinterWeldingCloak Manual? 0 Play Time 00:13:35 Cumulative 9.1 hours Start 2019.11.20 @ 16:08:50 End 2019.11.23 @ 15:59:12 Sessions 2 Manual Loads 0 Difficulty Rogue Special Mode None Game No. 22 Rogue 22 Adventurer 0 Explorer 0 Win Type - Total 0 Types 0/0/0/0/0/0/0 Lore% 13 Gallery% 13 Achievement% 10 Wizard Run 0 Options --------- ASCII 0 Keyboard 0 Movement Arrows Keybinds 0 Fullscreen 2 Font 18/SmallcapsGlow Map View 76x50 Tactical HUD 1 Map Filters NONE Filters NONE Steam 1 RUN: 2260d8f4-660b-4fec-9fc2-285f25fc3d81